bitfinex/quotes_ETHUSD_20251018
["timestamp","ask_amount","ask_price","bid_price","bid_amount"]
[1760753309343,0.002,3883.5,3883.0,5.30909229]
[1760753315263,0.002,3883.9,3883.8,4.30279787]
[1760753315566,0.002,3883.9,3883.8,7.62731382]
[1760753315896,0.002,3883.9,3883.8,8.39896585]
[1760753316401,0.1252,3885.5,3885.3,2.57380382]
[1760753316576,0.1252,3885.5,3885.3,2.59954185]
[1760753318104,0.125,3885.7,3885.3,2.59954185]
[1760753318667,0.1465,3886.0,3885.3,2.59954185]
[1760753319372,0.0475,3886.0,3885.3,2.59954185]
[1760753320174,0.0475,3886.0,3885.3,3.05894185]
[1760753320414,0.0475,3886.0,3885.3,3.89594967]
[1760753320702,0.0475,3886.0,3885.3,3.41081164]
[1760753320912,0.0993,3885.9,3885.3,3.41081164]
[1760753321888,0.0475,3886.0,3885.3,3.89594967]
[1760753322205,0.0475,3886.0,3885.3,3.43654967]
[1760753322507,0.0993,3885.8,3885.3,3.41081164]
[1760753323095,0.0993,3885.8,3885.3,3.43654967]
[1760753323621,0.0475,3886.0,3885.3,3.43654967]
[1760753323913,0.0993,3885.6,3885.3,6.02181164]
[1760753324082,0.0993,3885.9,3885.3,3.41081164]
[1760753324516,0.005,3885.4,3885.3,3.41081164]
[1760753325913,0.1043,3885.4,3885.3,3.41081164]
[1760753326227,0.1043,3885.4,3885.3,2.57380382]
[1760753326524,0.1043,3885.4,3885.3,2.70180382]
[1760753326708,0.005,3885.4,3885.3,2.70180382]
[1760753326890,0.005,3885.4,3885.3,2.72754185]
[1760753327499,0.005,3885.4,3885.3,2.70180382]
[1760753330824,0.005,3885.4,3885.3,0.128]
[1760753330825,0.1043,3885.4,3885.3,0.128]
[1760753331015,0.005,3885.4,3885.3,0.15373803]
[1760753331327,0.005,3885.4,3885.3,2.72754185]
[1760753331527,0.005,3885.4,3885.3,2.70180382]
[1760753332395,0.1043,3885.4,3885.3,2.70180382]
[1760753333309,0.005,3885.4,3885.3,2.70180382]
[1760753334433,0.1043,3885.4,3885.3,2.70180382]
[1760753335432,0.005,3885.4,3885.3,2.70180382]
[1760753335601,0.1043,3885.4,3885.3,2.70180382]
[1760753337235,0.005,3885.4,3885.3,2.70180382]
[1760753337529,0.005,3885.4,3885.3,3.22937763]
[1760753339504,0.005,3885.4,3885.3,3.25511566]
[1760753339998,0.005,3885.4,3885.3,3.22937763]
[1760753340620,0.005,3885.4,3885.3,3.68821566]
[1760753340906,0.005,3885.4,3885.3,3.25511566]
[1760753341124,0.005,3885.4,3885.3,3.22937763]
[1760753341319,0.005,3885.4,3885.3,3.25511566]
[1760753341519,0.005,3885.4,3885.3,3.68821566]
[1760753342023,0.005,3885.4,3885.3,3.66247763]
[1760753342225,0.005,3885.4,3885.3,3.22937763]
[1760753342439,0.005,3885.4,3885.3,3.68821566]
[1760753342848,0.005,3885.4,3885.3,5.41621566]
[1760753343052,0.005,3885.4,3885.3,5.39047763]
[1760753345357,0.005,3885.4,3885.3,4.95737763]
[1760753345561,0.005,3885.4,3885.3,5.43027763]
[1760753347210,0.005,3885.4,3885.3,4.95737763]
[1760753347611,0.005,3885.4,3885.3,4.82937763]
[1760753347844,0.005,3885.4,3885.3,3.10137763]
[1760753348622,0.005,3885.4,3885.3,3.57427763]
[1760753348825,0.005,3885.4,3885.3,3.10137763]
[1760753349340,0.005,3885.4,3885.3,7.93401566]
[1760753349526,0.005,3885.4,3885.3,7.90827763]
[1760753349850,1e-08,3885.4,3885.3,7.90827763]
[1760753352976,0.04484985,3887.1,3886.5,2.57300913]
[1760753353274,0.1227,3886.8,3886.5,4.30100913]
[1760753353480,0.102,3886.6,3886.5,2.57300913]
[1760753353781,0.102,3886.6,3886.5,2.67617303]
[1760753353982,0.102,3886.6,3886.5,0.1031639]
[1760753354469,0.003,3886.6,3886.5,2.70190312]
[1760753354637,0.003,3886.6,3886.5,3.20367671]
[1760753357663,0.003,3886.6,3886.5,3.33167671]
[1760753358176,0.102,3886.6,3886.5,2.80417303]
[1760753361689,0.003,3886.6,3886.5,2.80417303]
[1760753361997,0.003,3886.6,3886.5,2.82990312]
[1760753362290,0.102,3886.6,3886.5,0.2311639]
[1760753362486,0.102,3886.6,3886.5,2.80417303]
[1760753362694,0.104,3886.6,3886.5,2.80417303]
[1760753365990,0.005,3886.6,3886.5,0.2311639]
[1760753366293,0.104,3886.6,3886.5,0.128]
[1760753369483,0.104,3886.6,3886.0,0.1227]
[1760753369672,0.104,3886.6,3886.3,0.128]
[1760753370003,0.099,3886.5,3886.3,0.128]
[1760753370203,0.005,3886.6,3886.3,0.128]
[1760753370984,0.005,3886.6,3886.4,2.57301987]
[1760753371184,0.005,3886.6,3886.3,0.128]
[1760753371394,0.005,3886.6,3886.4,0.02573075]
[1760753371674,0.005,3886.6,3886.4,2.59879506]
[1760753371896,0.005,3886.6,3886.3,2.70113227]
[1760753372873,0.005,3886.6,3886.4,2.57306764]
[1760753373277,0.005,3886.6,3886.3,2.70112262]
[1760753373870,0.005,3886.6,3886.3,0.128]
[1760753374173,0.005,3886.6,3886.4,2.57305754]
[1760753374571,0.005,3886.6,3886.4,2.57307533]
[1760753375307,0.005,3886.6,3886.5,2.57300913]
[1760753375494,0.005,3886.6,3886.4,2.57306247]
[1760753378592,0.002,3887.0,3886.9,2.57274434]
[1760753378909,0.002,3887.0,3886.9,4.30074434]
[1760753379207,0.002,3887.0,3886.9,4.74924434]
[1760753379411,0.002,3887.0,3886.9,4.85239893]
[1760753379614,0.002,3887.0,3886.9,5.59492216]
[1760753380111,0.002,3887.0,3886.9,5.14642216]
[1760753380610,0.002,3887.0,3886.9,5.59492216]
[1760753384513,0.002,3887.0,3886.9,0.10315459]
[1760753384726,0.1015,3887.0,3886.6,2.57289235]
[1760753385020,0.3088,3886.9,3886.5,0.1222]
[1760753385329,1.8286,3886.8,3885.7,2.57353513]
[1760753385536,0.78213463,3886.7,3885.8,2.88226772]
[1760753385832,0.78213463,3886.7,3885.4,0.001]
[1760753385833,4.92444634,3886.6,3885.6,2.57358002]
[1760753385992,1.8759,3886.5,3885.4,0.001]
[1760753386192,0.7333981,3886.4,3885.5,2.57366537]
[1760753386562,0.1479,3886.3,3885.5,2.57366537]
[1760753386822,0.1479,3886.2,3885.5,2.57366537]
[1760753387012,0.1479,3886.2,3885.4,2.57472246]
[1760753387330,0.1479,3886.1,3885.4,2.57472246]
[1760753387541,0.1479,3886.1,3885.5,2.57366879]
[1760753387702,0.1479,3886.0,3885.5,2.57366879]
[1760753387916,0.1479,3885.9,3885.5,2.57366879]
[1760753388311,0.04485015,3886.2,3885.5,2.57366879]
[1760753388619,0.1479,3885.9,3885.6,0.128]
[1760753388929,0.42347498,3886.2,3885.6,0.128]
[1760753388930,0.1479,3885.8,3885.6,0.128]
[1760753389501,0.1479,3885.8,3885.6,2.70160102]
[1760753389709,0.1479,3885.8,3885.6,0.128]
[1760753389910,0.0494,3885.7,3885.6,0.128]
[1760753391224,0.0494,3885.7,3885.6,2.7016051]
[1760753391825,0.099,3886.1,3885.6,0.128]
[1760753392031,0.0494,3886.0,3885.7,2.57353496]
[1760753392232,0.1484,3886.0,3885.7,2.57353496]
[1760753392463,0.17285015,3886.2,3885.7,0.4485]
[1760753392625,0.04485015,3886.2,3886.0,2.57327678]
[1760753392821,0.04485015,3886.2,3885.9,0.128]
[1760753393068,0.099,3886.1,3885.9,0.128]
[1760753393670,13.984981,3898.5,3886.1,0.198]
[1760753393671,1.02191948,3889.2,3886.1,0.198]
[1760753393872,0.8908841,3889.2,3889.1,2.57128898]
[1760753394019,0.8908841,3889.2,3889.1,0.2571289]
[1760753394223,0.8908841,3889.2,3889.1,2.57128898]
[1760753394944,0.8908841,3889.2,3889.1,3.34457155]
[1760753395160,0.8908841,3889.2,3889.1,0.77328257]
[1760753395325,0.8908841,3889.2,3888.1,2.57189307]
[1760753395326,0.8908841,3889.2,3888.1,1.728]
[1760753395649,0.8908841,3889.2,3889.0,0.77330848]
[1760753395849,0.8908841,3889.2,3888.9,2.57141323]
[1760753396051,0.8908841,3889.2,3888.5,2.57167431]
[1760753396249,0.8908841,3889.2,3888.9,0.77337825]
[1760753396454,0.8908841,3889.2,3889.1,0.2328]
[1760753396621,0.8908841,3889.2,3888.9,0.77337825]
[1760753400029,0.8908841,3889.2,3888.6,3.0370077]
[1760753400229,0.8908841,3889.2,3888.7,0.77335832]
[1760753400727,0.93569977,3889.2,3888.8,0.4654]
[1760753400927,0.8908841,3889.2,3888.8,0.4654]
[1760753401151,0.8908841,3889.2,3888.7,0.77335832]
[1760753401355,0.8928841,3889.2,3888.7,0.77335832]
[1760753402340,0.8928841,3889.2,3888.4,0.4654]
[1760753402552,0.8928841,3889.2,3888.6,0.77335832]
[1760753403164,0.8928841,3889.2,3888.8,2.57144284]
[1760753403358,0.8928841,3889.2,3888.8,3.03684284]
[1760753403557,0.8928841,3889.2,3888.9,0.4472]
[1760753403869,0.8928841,3889.2,3889.1,0.128]
[1760753406446,0.93769945,3889.2,3889.1,0.128]
[1760753406975,0.8928841,3889.2,3889.1,0.128]
[1760753410372,0.8928841,3889.2,3887.8,2.57210025]
[1760753410373,1.03700014,3889.2,3888.1,0.4472]
[1760753410572,0.128,3889.1,3888.5,0.128]
[1760753411950,0.0993,3889.0,3888.5,0.128]
[1760753412153,0.38411841,3889.0,3888.5,0.128]
[1760753412478,0.128,3888.6,3887.9,0.128]
[1760753413887,1.728,3888.8,3887.4,0.4472]
[1760753414088,0.128,3888.3,3887.6,0.128]
[1760753414269,0.0993,3888.2,3887.6,0.128]
[1760753414665,0.128,3887.8,3887.2,0.128]
[1760753416393,0.04483008,3888.1,3886.3,0.4472]
[1760753416394,0.0993,3887.7,3886.3,0.4472]
[1760753416766,0.044837,3887.4,3886.3,0.4472]
[1760753417300,0.044837,3887.4,3886.4,2.57304658]
[1760753417464,0.044837,3887.4,3886.5,0.77250466]
[1760753418957,0.044837,3887.4,3886.2,2.80594333]
[1760753418958,0.044837,3887.4,3886.2,0.2328]
[1760753419200,0.0993,3887.3,3886.2,0.2328]
[1760753419375,0.0993,3887.3,3886.3,0.4472]
[1760753419783,0.044837,3887.4,3886.3,0.4472]
[1760753419979,0.0993,3887.6,3886.3,0.4472]
[1760753420160,2.2672511,3887.6,3886.3,0.4482]
[1760753420363,2.67160458,3887.6,3886.3,0.4482]
[1760753420693,0.04484126,3888.0,3886.3,0.4482]
[1760753420694,2.57235344,3887.5,3886.3,0.4482]
[1760753420860,0.04484126,3888.0,3886.3,0.4482]
[1760753421061,0.04484126,3888.0,3887.9,8.29920827]
[1760753421266,0.40350804,3888.1,3888.0,2.57201646]
[1760753421564,1.728,3889.9,3888.3,2.57179838]
[1760753421883,23.75652656,3890.0,3887.9,1.08713793]
[1760753421884,23.75652656,3890.0,3888.6,2.57158883]
[1760753422197,23.75652656,3890.0,3888.7,0.4472]
[1760753422496,23.65722656,3890.0,3888.6,2.57161825]
[1760753422661,0.93769992,3889.2,3888.8,0.4472]
[1760753422868,0.93769992,3889.2,3889.1,0.2362]
[1760753423663,0.93769992,3889.2,3889.1,0.6834]
[1760753426384,0.93769992,3889.2,3889.1,0.8114]
[1760753427501,2.22769992,3889.2,3889.1,0.8114]
[1760753428316,2.22769992,3889.2,3889.1,3.38268898]
[1760753428494,2.22769992,3889.2,3889.1,1.1496689]
[1760753428698,2.22769992,3889.2,3889.1,0.8114]
[1760753432521,2.22769992,3889.2,3889.1,3.38268898]
[1760753432817,2.22769992,3889.2,3889.1,0.8114]
[1760753433527,2.22769992,3889.2,3889.1,3.38268898]
[1760753433893,2.22769992,3889.2,3889.1,0.8114]
[1760753434093,2.22769992,3889.2,3889.1,3.38268898]
[1760753434596,2.22769992,3889.2,3889.1,0.8114]
[1760753435598,2.22769992,3889.2,3889.1,3.38268898]
[1760753435922,2.22769992,3889.2,3889.1,3.40840186]
[1760753436123,2.22769992,3889.2,3889.1,0.8114]
[1760753436506,2.22769992,3889.2,3889.1,3.38268898]
[1760753436729,2.22769992,3889.2,3889.1,0.8114]
[1760753437033,2.22769992,3889.2,3889.1,3.38268898]
[1760753437537,2.22769992,3889.2,3889.1,0.8114]
[1760753438105,2.22769992,3889.2,3889.1,3.38268898]
[1760753438424,2.22769992,3889.2,3889.1,0.8114]
[1760753438826,2.22769992,3889.2,3889.1,0.128]
[1760753438989,2.45046991,3889.2,3889.1,0.128]
[1760753440197,2.22769992,3889.2,3889.1,0.128]
[1760753441124,2.32699992,3889.2,3888.6,0.128]
[1760753442228,0.0993,3889.1,3888.6,0.128]
[1760753442427,0.0993,3889.0,3888.6,0.128]
[1760753442738,0.0993,3888.9,3888.6,0.128]
[1760753442932,0.0993,3888.8,3887.7,2.57220714]
[1760753443261,0.2273,3888.8,3888.1,0.128]
[1760753444339,0.29032196,3889.0,3885.9,0.686]
[1760753444340,5.72511291,3888.2,3885.9,0.686]
[1760753444553,1.728,3887.3,3886.4,0.2145]
[1760753444708,0.84064454,3887.2,3886.3,0.001]
[1760753445034,0.74531129,3887.2,3886.4,0.4705]
[1760753445235,1.728,3887.7,3886.3,0.001]
[1760753445437,0.0993,3887.3,3886.3,0.001]
[1760753446007,1.8273,3887.3,3886.3,0.001]
[1760753446207,0.43997159,3887.2,3886.3,0.001]
[1760753446408,0.04484477,3887.1,3886.3,0.001]
[1760753448013,0.14414477,3887.1,3886.3,0.001]
[1760753448762,0.1253,3886.4,3886.3,0.001]
[1760753449416,0.17014802,3886.4,3886.3,0.001]
[1760753450115,2.57334019,3886.0,3885.9,0.001]
[1760753450354,4.98879499,3886.0,3885.9,0.001]
[1760753450552,4.30153887,3885.7,3885.6,0.001]
[1760753450912,4.39913887,3885.7,3885.6,0.001]
[1760753456953,4.39913887,3885.7,3885.4,0.001]
[1760753456954,2.57367134,3885.5,3883.8,0.001]
[1760753457151,15.23486866,3885.1,3883.8,0.001]
[1760753457446,4.30266529,3884.0,3883.8,0.001]
[1760753457657,4.99038773,3884.0,3883.8,0.001]
[1760753457842,5.08798773,3884.0,3883.8,0.001]
[1760753459063,5.53682354,3884.0,3883.8,0.001]
[1760753460269,2.86455825,3884.0,3883.8,0.001]
[1760753460419,2.17683581,3884.0,3883.8,0.001]
[1760753461125,4.7515011,3884.0,3883.8,0.001]
[1760753461315,4.8491011,3884.0,3883.8,0.001]
[1760753463451,18.64128853,3884.0,3883.8,0.001]
[1760753465050,18.54368853,3884.0,3883.8,0.001]
[1760753465252,19.8870719,3884.0,3883.8,0.001]
[1760753470574,19.8870719,3884.0,3879.0,0.001]
[1760753470727,17.09343609,3879.6,3873.6,2.58151537]
[1760753470929,15.52018743,3877.1,3877.0,0.2239]
[1760753471157,15.52018743,3877.1,3876.0,0.2239]
[1760753471158,4.3073139,3877.0,3876.9,0.4514]
[1760753471360,2.57952945,3876.7,3876.0,0.2239]
[1760753471558,0.12643171,3877.1,3876.0,0.2239]
[1760753471559,1.728,3876.1,3876.0,0.2239]
[1760753471857,1.728,3876.1,3876.0,0.00754713]
[1760753472063,1.728,3876.1,3874.9,0.2239]
[1760753472240,13.79218743,3875.6,3874.9,0.2239]
[1760753472439,1.728,3875.5,3874.9,0.2239]
[1760753473450,1.728,3875.5,3873.1,0.02581911]
[1760753473628,1.728,3875.5,3873.8,2.58137945]
[1760753474058,0.04497522,3875.2,3874.3,2.58108508]
[1760753474236,0.04497522,3875.2,3874.4,0.28391895]
[1760753474568,0.04496911,3875.9,3874.9,0.001]
[1760753475241,0.04496911,3875.9,3874.9,2.58170109]
[1760753475441,0.04496911,3875.9,3874.9,0.001]
[1760753475643,0.04496911,3875.9,3875.0,2.5806439]
[1760753476037,0.04496911,3875.9,3874.9,2.58167861]
[1760753476257,0.04496911,3875.9,3875.0,0.25816786]
[1760753476455,0.04496911,3875.9,3874.9,0.001]
[1760753477161,13.79218743,3875.8,3874.9,0.001]
[1760753478689,0.04496911,3875.9,3874.9,0.001]
[1760753479487,1.728,3876.4,3874.1,2.58223467]
[1760753479488,0.2327,3875.0,3874.3,1.728]
[1760753479792,0.2327,3875.0,3874.1,0.001]
[1760753479793,1.728,3874.3,3874.1,0.001]
[1760753480681,0.1288,3874.5,3874.1,0.001]
[1760753482688,0.17378468,3874.5,3874.1,0.001]
[1760753483376,0.4656,3874.4,3873.9,0.04173046]
[1760753483583,1.728,3874.1,3869.6,4.926438]
[1760753483913,1.728,3873.2,3870.1,1.728]
[1760753484067,0.6983,3873.1,3870.2,0.02583845]
[1760753484262,0.04501278,3872.5,3870.0,1.728]
[1760753484505,0.51061278,3872.5,3869.7,0.49522811]
[1760753484709,0.51061278,3872.5,3870.6,2.58355375]
[1760753484910,0.51061278,3872.5,3870.4,2.58364838]
[1760753485204,0.04501278,3872.5,3869.0,0.13503392]
[1760753485387,0.2327,3872.6,3869.6,2.58424643]
[1760753485587,0.04501481,3871.8,3870.9,2.58336626]
[1760753485793,0.04501481,3871.8,3870.9,2.58337221]
[1760753486099,0.04501481,3871.8,3870.8,2.58343262]
[1760753486302,0.04501481,3871.8,3870.0,1.728]
[1760753486303,0.04501481,3871.8,3870.7,2.58351044]
[1760753486603,0.04501481,3871.8,3870.8,0.25835104]
[1760753487501,0.04501481,3871.8,3870.5,2.58359858]
[1760753487872,0.04501481,3871.8,3870.6,2.58356487]
[1760753488086,0.04501481,3871.8,3869.8,1.728]
[1760753488592,0.04501481,3871.8,3870.6,2.58357833]
[1760753488788,0.04501481,3871.8,3870.0,1.728]
[1760753489001,0.04501481,3871.8,3870.1,0.43378872]
[1760753489201,0.04501481,3871.8,3869.8,0.02584112]
[1760753489408,0.04501481,3871.8,3870.3,2.5837226]
[1760753489616,0.04501481,3871.8,3870.2,1.728]
[1760753489925,0.48991481,3871.8,3870.0,2.58397193]
[1760753490425,0.4449,3871.8,3870.0,2.58397193]
[1760753490592,1.62635198,3871.7,3870.4,2.58364941]
[1760753490790,1.62635198,3871.7,3870.4,2.50599567]
[1760753491116,1.62635198,3871.7,3868.8,1.728]
[1760753491322,13.8565198,3870.4,3868.0,2.58527732]
[1760753491521,1.728,3869.2,3865.8,0.1298904]
[1760753491768,13.8565198,3869.2,3865.9,1.204]
[1760753491901,0.2341,3869.4,3866.3,2.58645216]
[1760753492103,0.2341,3869.4,3868.1,2.58524501]
[1760753492425,0.2341,3869.4,3867.8,2.58538377]
[1760753492625,0.2341,3869.4,3866.4,1.35807752]
[1760753492626,1.728,3869.0,3866.4,1.35807752]
[1760753492936,1.728,3869.0,3867.2,2.58584941]
[1760753492937,0.4449,3868.9,3867.2,2.58584941]
[1760753493118,0.4449,3868.9,3867.3,0.02585783]
[1760753493288,0.0450556,3868.5,3866.5,0.02586318]
[1760753493491,0.0450556,3868.5,3866.7,2.5861846]
[1760753493691,0.0450556,3868.5,3867.3,2.5857702]
[1760753493892,0.0450556,3868.5,3868.2,0.1288]
[1760753494497,0.4449,3868.9,3866.6,0.26122484]
[1760753494691,0.04505258,3868.8,3866.7,0.29892248]
[1760753494916,0.4449,3868.7,3866.7,0.29892248]
[1760753495111,0.22179526,3868.6,3867.1,2.58591546]
[1760753495321,0.22179526,3868.6,3866.7,2.88510235]
[1760753495322,1.728,3868.4,3866.7,2.88510235]
[1760753495528,1.728,3868.2,3866.7,0.29892248]
[1760753495728,1.728,3868.2,3866.0,0.001]
[1760753495928,0.04506639,3867.9,3866.0,0.001]
[1760753496211,0.679,3867.8,3866.0,0.001]
[1760753496416,1.728,3867.6,3866.0,2.58762481]
[1760753496700,1.728,3867.6,3866.0,0.001]
[1760753496917,1.728,3867.6,3866.7,2.58613966]
[1760753497117,0.04506697,3867.3,3866.0,0.001]
[1760753497308,0.04506697,3867.3,3866.1,2.58658596]
[1760753497509,0.04506697,3867.3,3866.8,2.58611233]
[1760753497704,0.04506697,3867.3,3866.9,2.58604026]
[1760753497905,0.04506697,3867.3,3867.2,2.58585022]
[1760753498436,2.728,3867.7,3867.4,2.58570483]
[1760753498627,2.728,3867.7,3867.1,2.58589434]
[1760753498821,2.728,3867.7,3866.0,0.43257973]
[1760753499020,2.728,3867.7,3867.6,2.58558279]
[1760753500108,0.40553282,3868.6,3868.2,2.58512095]
[1760753500337,0.40553282,3868.6,3867.0,0.02585983]
[1760753500338,2.725,3868.5,3867.0,0.02585983]
[1760753500547,2.725,3868.5,3866.7,1.728]
[1760753500708,2.725,3868.5,3868.4,2.58504808]
[1760753501124,0.2341,3869.0,3867.3,1.728]
[1760753501328,0.2341,3869.0,3867.8,2.5854437]
[1760753501329,1.205,3869.0,3867.8,2.5854437]
[1760753501535,1.205,3869.0,3868.4,2.58504801]
[1760753501725,1.205,3869.0,3867.1,1.728]
[1760753502050,1.205,3869.0,3867.2,0.4183]
[1760753502051,0.2341,3868.9,3867.2,0.4183]
[1760753502248,0.679,3868.9,3867.7,2.58546326]
[1760753502544,0.679,3868.9,3867.2,0.3183]
[1760753502715,0.679,3868.9,3868.0,2.58529147]
[1760753502911,0.2341,3868.9,3868.2,2.58518173]
[1760753503134,0.04505192,3868.8,3868.4,2.58499632]
[1760753503332,0.04505192,3868.8,3868.2,2.58518101]
[1760753503553,0.04505192,3868.8,3868.7,2.58484762]
[1760753504029,2.27546894,3870.7,3867.6,2.58553324]
[1760753504030,0.04504519,3869.5,3867.8,1.728]
[1760753504233,0.04504519,3869.5,3869.3,2.58439941]
[1760753504432,0.04504519,3869.5,3867.7,13.90207745]
[1760753504433,0.04504519,3869.5,3869.1,0.1288]
[1760753504652,0.04504519,3869.5,3869.1,2.71336365]
[1760753504869,0.04504519,3869.5,3869.2,2.58451359]
[1760753505164,2.394,3869.6,3869.5,2.58431321]
[1760753505364,2.394,3869.6,3869.4,0.1288]
[1760753505539,2.394,3869.6,3869.5,2.58431321]
[1760753506536,2.394,3869.6,3869.4,2.71316644]
[1760753507552,2.394,3869.6,3869.4,0.1288]
[1760753507754,2.394,3869.6,3869.4,2.71317252]
[1760753507755,2.8389,3869.6,3869.4,2.71317252]
[1760753507928,2.8389,3869.6,3869.5,2.58431321]
[1760753508446,2.8389,3869.6,3869.4,0.1288]
[1760753508831,0.4449,3869.5,3869.4,0.1288]
[1760753509467,0.48994103,3869.5,3869.4,0.1288]
[1760753509841,0.48994103,3869.5,3868.4,2.58500141]
[1760753509842,0.48994103,3869.5,3869.1,0.1288]
[1760753510063,0.48994103,3869.5,3869.1,2.71332949]
[1760753510872,0.04504103,3869.5,3869.1,2.66154047]
[1760753511453,0.04504103,3869.5,3869.1,0.07701098]
[1760753511454,0.4449,3869.4,3869.1,0.07701098]
[1760753511764,0.04504103,3869.5,3869.1,0.07701098]
[1760753512150,0.04504103,3869.5,3869.0,2.58463207]
[1760753512370,0.04504103,3869.5,3868.9,2.58469473]
[1760753512664,0.04504103,3869.5,3869.0,2.58464283]
[1760753512852,2.716,3870.6,3868.9,0.25846947]
[1760753513040,0.72403814,3870.3,3868.5,1.728]
[1760753513243,2.27546894,3871.1,3871.0,2.5833118]
[1760753513431,3.19409433,3871.5,3871.0,2.58330332]
[1760753513636,0.4449,3871.4,3869.7,1.728]
[1760753513833,2.723,3871.3,3869.1,2.723]
[1760753514035,0.4449,3871.2,3870.4,2.58365705]
[1760753514230,0.4449,3871.2,3868.8,1.728]
[1760753514463,0.4449,3871.2,3868.9,3.29100775]
[1760753514464,0.76169,3871.2,3868.9,3.29100775]
[1760753514667,0.76169,3871.2,3870.6,2.58357685]
[1760753514854,0.4449,3871.2,3870.4,2.58365794]
[1760753515163,0.4449,3871.2,3869.2,1.728]
[1760753515530,0.4449,3871.2,3870.6,2.58356824]
[1760753515940,0.2341,3870.7,3870.4,2.58370048]
[1760753516138,2.722,3870.6,3870.4,2.58370048]
[1760753516366,2.722,3870.6,3870.5,2.58364552]
[1760753517475,2.72,3870.6,3869.4,1.728]
[1760753517774,2.623,3870.5,3870.4,2.58371227]
[1760753518073,0.04502707,3871.1,3870.2,2.58380726]
[1760753518277,0.64,3871.0,3870.5,1.728]
[1760753518471,0.48992112,3871.6,3871.1,2.58319051]
[1760753518669,1.213,3871.5,3871.1,2.58319051]
[1760753518848,2.719,3871.4,3871.2,2.5831211]
[1760753519445,2.719,3871.4,3871.3,2.58311161]
[1760753519649,2.718,3871.4,3871.3,2.58311161]
[1760753519851,2.718,3871.4,3870.6,0.4570093]
[1760753520291,2.718,3871.4,3869.6,2.58421014]
[1760753520292,2.718,3871.4,3870.2,2.58378804]
[1760753520490,2.718,3871.4,3870.8,2.58338291]
[1760753520689,2.718,3871.4,3870.9,2.58334908]
[1760753520860,3.1466,3871.4,3870.9,2.58334908]
[1760753521067,0.4286,3871.3,3869.7,1.728]
[1760753521390,0.4286,3871.3,3870.8,2.58344293]
[1760753521693,0.6652,3871.2,3870.4,2.58366136]
[1760753521983,0.6652,3871.2,3870.6,2.58356871]
[1760753522154,0.6652,3871.2,3869.9,1.728]
[1760753522355,0.794,3871.2,3870.6,0.1288]
[1760753522599,0.794,3871.2,3870.7,2.58350569]
[1760753522780,0.4286,3871.8,3870.7,0.52959928]
[1760753522966,0.04502333,3871.4,3871.2,2.58317692]
[1760753523675,0.04502333,3871.4,3871.0,2.58330946]
[1760753523866,0.04502333,3871.4,3871.2,2.5831445]
[1760753524055,0.04502333,3871.4,3871.2,2.58314099]
[1760753524497,0.04502333,3871.4,3871.1,2.58323019]
[1760753524883,0.4445,3871.3,3870.4,2.583697]
[1760753525182,0.4445,3871.3,3869.5,4.31231321]
[1760753525183,0.2144,3871.2,3870.5,2.58364077]
[1760753526588,0.2144,3871.2,3869.1,2.58456749]
[1760753526589,0.4445,3871.1,3869.8,2.58409612]
[1760753526787,0.2144,3871.2,3870.1,2.58391111]
[1760753526788,3.1565,3871.0,3870.1,2.58391111]
[1760753526989,2.1725,3870.9,3869.8,2.58408164]
[1760753527190,0.0450318,3870.8,3870.1,2.5839084]
[1760753527490,2.7560318,3870.8,3870.4,2.58370697]
[1760753527691,2.7560318,3870.8,3870.2,2.58383876]
[1760753527692,2.7560318,3870.8,3870.5,2.58363261]
[1760753529869,2.711,3870.8,3870.5,2.58363261]
[1760753530068,2.75602816,3870.8,3870.5,2.58363261]
[1760753530471,2.711,3870.8,3870.5,2.58363261]
[1760753530670,2.711,3870.8,3870.4,2.58370712]
[1760753530886,2.711,3870.8,3870.3,2.58376532]
[1760753531080,3.1555,3870.8,3870.4,2.58369532]
[1760753531306,3.1555,3870.8,3869.1,0.001]
[1760753531307,0.76005,3870.7,3869.1,0.001]
[1760753531687,5.07159464,3870.7,3869.1,0.001]
[1760753532022,1.728,3870.5,3869.1,0.001]
[1760753532174,0.2144,3869.2,3869.1,0.001]
[1760753532370,0.2144,3869.2,3868.7,0.001]
[1760753532594,0.4445,3869.1,3868.7,0.001]
[1760753534973,0.48955311,3869.1,3868.7,0.001]
[1760753537272,0.04505311,3869.1,3868.7,0.001]
[1760753537608,0.1288,3868.9,3868.7,0.001]
[1760753538102,0.04505311,3869.1,3868.8,2.58477399]
[1760753538308,0.002,3871.2,3871.1,2.58324507]
[1760753538506,0.002,3871.2,3871.1,4.56956958]
[1760753538708,0.002,3871.2,3871.1,9.16356015]
[1760753538912,0.002,3871.2,3871.1,4.56956958]
[1760753539271,0.002,3871.2,3871.1,7.29356958]
[1760753539503,0.002,3871.2,3871.1,4.56956958]
[1760753539802,0.002,3871.2,3871.1,4.31124507]
[1760753542421,0.002,3871.2,3871.1,2.58324507]
[1760753548590,0.002,3871.2,3871.1,2.71204507]
[1760753549322,1e-08,3871.6,3871.5,2.58297817]
[1760753549485,1e-08,3871.6,3871.5,5.68707599]
[1760753551119,1e-08,3871.6,3871.5,2.58297817]
[1760753551486,0.47060001,3871.6,3871.5,2.58297817]
[1760753551732,1e-08,3871.6,3871.5,2.58297817]
[1760753553005,1e-08,3871.6,3871.5,5.32380795]
[1760753553219,1e-08,3871.6,3871.5,5.29797817]
[1760753553419,1e-08,3871.6,3871.5,6.08608294]
[1760753555801,1e-08,3871.6,3871.5,3.37108294]
[1760753556025,1e-08,3871.6,3871.5,6.08508294]
[1760753558139,1e-08,3871.6,3871.5,3.37108294]
[1760753558507,1e-08,3871.6,3871.5,6.08308294]
[1760753560031,1e-08,3871.6,3871.5,3.37108294]
[1760753560539,1e-08,3871.6,3871.5,6.08208294]
[1760753560738,1e-08,3871.6,3871.5,3.37108294]
[1760753560907,1e-08,3871.6,3871.5,6.08108294]